fUSD/lending_fUSD_20240801
["ID","MTS","AMOUNT","RATE_DAILY","PERIOD"]
[333830887,1722537050510,-1833185.66543571,0.00013,2]
[333830888,1722537050520,-4150.0,0.00013,2]
[333830889,1722537050530,-155.0,0.00013,2]
[333830890,1722537050539,-25000.0,0.00013,2]
[333830891,1722537050549,-2000.0,0.00013,2]
[333830892,1722537050558,-6335399.35,0.00013,2]
[333830893,1722537050568,-96778.68,0.00013,2]
[333830894,1722537050578,-25000.0,0.00013,3]
[333830895,1722537050588,-152985.88,0.00013,2]
[333830896,1722537050598,-1000.0,0.00013,2]
[333830897,1722537050607,-1554.0,0.00013,2]
[333830898,1722537050617,-151.0,0.00013,2]
[333830899,1722537050627,-151.0,0.00013,2]
[333830900,1722537050643,-151.0,0.00013,2]
[333830901,1722537050652,-151.0,0.00013,2]
[333830902,1722537050662,-1242.473188,0.00013,2]
[333830903,1722537050672,-1242.473188,0.00013,2]
[333830904,1722537050681,-151.0,0.00013,2]
[333830905,1722537050691,-151.0,0.00013,2]
[333830906,1722537050700,-1242.473188,0.00013,2]
[333830907,1722537050710,-1242.473188,0.00013,2]
[333830908,1722537050720,-151.0,0.00013,2]
[333830909,1722537050730,-162.219386,0.00013,2]
[333830910,1722537050740,-151.0,0.00013,2]
[333830911,1722537050750,-151.0,0.00013,2]
[333830912,1722537050760,-159.398392,0.00013,2]
[333830913,1722537050770,-159.398392,0.00013,2]
[333830914,1722537050780,-159.398392,0.00013,2]
[333830915,1722537050791,-159.398392,0.00013,2]
[333830916,1722537050800,-233.551866,0.00013,2]
[333830917,1722537050810,-233.551866,0.00013,2]
[333830918,1722537050820,-233.551866,0.00013,2]
[333830919,1722537050830,-233.551866,0.00013,2]
[333830920,1722537050840,-151.0,0.00013,2]
[333830921,1722537050850,-217.70529,0.00013,2]
[333830922,1722537050860,-159.749043,0.00013,2]
[333830923,1722537050872,-159.749043,0.00013,2]
[333830924,1722537050883,-5037.25922118,0.0001305,2]
[333830925,1722537050893,-3000.0,0.000132,2]
[333830926,1722537050903,-823.0,0.00013258,2]
[333830927,1722537050914,-277.8535191,0.00013278,2]
[333830928,1722537050924,-1003.94,0.000133,2]
[333830929,1722537050933,-308.34,0.000133,2]
[333830930,1722537050944,-155.0,0.0001331,2]
[333830931,1722537050955,-158.78852529,0.00013333,2]
[333830932,1722537050965,-200.0,0.00013333,2]
[333830933,1722537050976,-6198.43284427,0.0001335,2]
[333830934,1722537050986,-3000.0,0.0001339,2]
[333830935,1722537050996,-167.15,0.00013421,2]
[333830936,1722537051006,-500.0,0.00013425,2]
[333830937,1722537051016,-3079.05538157,0.00013489,2]
[333830938,1722537051026,-10524.20000003,0.00013489,2]
[333830939,1722537051036,-1000.0,0.000135,2]
[333830940,1722537051047,-89884.30966259,0.000135,2]
[333830941,1722537051057,-151.0,0.000135,2]
[333830942,1722537051067,-151.0,0.000135,2]
[333830943,1722537051077,-1242.473188,0.000135,2]
[333830944,1722537051088,-151.0,0.000135,2]
[333830945,1722537051098,-1242.473188,0.000135,2]
[333830946,1722537051108,-151.0,0.000135,2]
[333830947,1722537051118,-159.398392,0.000135,2]
[333830948,1722537051129,-159.398392,0.000135,2]
[333830949,1722537051143,-233.551866,0.000135,2]
[333830950,1722537051153,-233.551866,0.000135,2]
[333830951,1722537051163,-159.749043,0.000135,2]
[333830952,1722537051174,-23146.7143122,0.00013524,2]
[333830953,1722537051184,-200.0,0.00013525,2]
[333830954,1722537051195,-252.45066708,0.00013525,2]
[333830955,1722537051205,-200.25632791,0.00013573,2]
[333830956,1722537051215,-151.0,0.00013579,2]
[333830957,1722537051225,-151.0,0.00013579,2]
[333830958,1722537051235,-5398.55869267,0.00013579,2]
[333830959,1722537051245,-1404.6505661,0.00013579,2]
[333830960,1722537051256,-148132.07166054,0.0001358,2]
[333830961,1722537051266,-124787.36862599,0.0001358,2]
[333830962,1722537051276,-16188.55971347,0.0001358,2]
[333830963,1722537051285,-151.0,0.0001358,2]
[333830964,1722537051295,-151.0,0.0001358,2]
[333830965,1722537051305,-197.745968,0.0001358,2]
[333830966,1722537051315,-151.0,0.0001358,2]
[333830967,1722537051328,-151.0,0.0001358,2]
[333830968,1722537051338,-151.0,0.0001358,2]
[333830969,1722537051348,-151.0,0.0001358,2]
[333830970,1722537051359,-151.0,0.0001358,2]
[333830971,1722537051369,-171.902742,0.0001358,2]
[333830972,1722537051380,-151.274283,0.0001358,2]
[333830973,1722537051396,-151.0,0.0001358,2]
[333830974,1722537051405,-151.0,0.0001358,2]
[333830975,1722537051414,-151.0,0.0001358,2]
[333830976,1722537051423,-151.0,0.0001358,2]
[333830977,1722537051435,-151.0,0.0001358,2]
[333830978,1722537051444,-151.397459,0.0001358,2]
[333830979,1722537051454,-151.0,0.0001358,2]
[333830980,1722537051464,-154.691468,0.0001358,2]
[333830981,1722537051473,-151.0,0.0001358,2]
[333830982,1722537051483,-151.0,0.0001358,2]
[333830983,1722537051492,-280.030852,0.0001358,2]
[333830984,1722537051502,-280.030852,0.0001358,2]
[333830985,1722537051512,-436.42077402,0.000136,2]
[333830986,1722537051523,-25298.4632004,0.0001367,2]
[333830987,1722537051534,-158.84582488,0.00013671,2]
[333830988,1722537051544,-158.28142133,0.00013675,2]
[333830989,1722537051555,-200.38128975,0.00013675,2]
[333830990,1722537051565,-160.28982354,0.00013675,2]
[333830991,1722537051576,-155.27914653,0.00013675,2]
[333830992,1722537051585,-158.7856317,0.00013676,2]
[333830993,1722537051597,-266.64311796,0.0001369,2]
[333830994,1722537051606,-1621.96390599,0.00013698,2]
[333830995,1722537051616,-1621.96390599,0.00013698,2]
[333830996,1722537051626,-800.0,0.00013699,2]
[333830997,1722537051639,-800.0,0.00013699,2]
[333830998,1722537051648,-800.0,0.00013699,2]
[333830999,1722537051658,-800.0,0.00013699,2]
[333831000,1722537051667,-800.0,0.00013699,2]
[333831001,1722537051676,-800.0,0.00013699,2]
[333831002,1722537051686,-800.0,0.00013699,2]
[333831003,1722537051695,-800.0,0.00013699,2]
[333831004,1722537051705,-800.0,0.00013699,2]
[333831005,1722537051714,-151.0,0.00013699,2]
[333831006,1722537051724,-151.0,0.00013699,2]
[333831007,1722537051734,-800.0,0.00013699,2]
[333831008,1722537051743,-153.45663,0.00013699,2]
[333831009,1722537051753,-153.45663,0.00013699,2]
[333831010,1722537051763,-800.0,0.00013699,2]
[333831011,1722537051773,-800.0,0.00013699,2]
[333831012,1722537051783,-600.0,0.00013699,2]
[333831013,1722537051793,-600.0,0.00013699,2]
[333831014,1722537051802,-800.0,0.00013699,2]
[333831015,1722537051811,-2331.59,0.00013699,2]
[333831016,1722537051820,-800.0,0.00013699,2]
[333831017,1722537051830,-800.0,0.00013699,2]
[333831018,1722537051839,-500.0,0.00013699,2]
[333831019,1722537051849,-800.0,0.00013699,2]
[333831020,1722537051858,-200.0,0.00013699,2]
[333831021,1722537051870,-2751.0,0.00013699,2]
[333831022,1722537051886,-800.0,0.00013699,2]
[333831023,1722537051895,-800.0,0.00013699,2]
[333831024,1722537051908,-300.0,0.00013699,2]
[333831025,1722537051918,-300.0,0.00013699,2]
[333831026,1722537051928,-300.0,0.00013699,2]
[333831027,1722537051939,-300.0,0.00013699,2]
[333831028,1722537051950,-300.0,0.00013699,2]
[333831029,1722537051960,-300.0,0.00013699,2]
[333831030,1722537051969,-300.0,0.00013699,2]
[333831031,1722537051979,-300.0,0.00013699,2]
[333831032,1722537051988,-300.0,0.00013699,2]
[333831033,1722537051998,-300.0,0.00013699,2]
[333831034,1722537052007,-300.0,0.00013699,2]
[333831035,1722537052017,-300.0,0.00013699,2]
[333831036,1722537052026,-300.0,0.00013699,2]
[333831037,1722537052036,-300.0,0.00013699,2]
[333831038,1722537052046,-300.47272877,0.000137,2]
[333831039,1722537052056,-160.28533483,0.000137,2]
[333831040,1722537052066,-1250.0,0.000137,2]
[333831041,1722537052075,-25000.0,0.000137,3]
[333831042,1722537052085,-1242.473188,0.000137,2]
[333831043,1722537052294,-151.0,0.000137,2]
[333831044,1722537052304,-1242.473188,0.000137,2]
[333831045,1722537052314,-151.0,0.000137,2]
[333831046,1722537052323,-159.398392,0.000137,2]
[333831047,1722537052333,-159.398392,0.000137,2]
[333831048,1722537052344,-233.551866,0.000137,2]
[333831049,1722537052354,-233.551866,0.000137,2]
[333831050,1722537052366,-159.749043,0.000137,2]
[333831051,1722537052375,-231.45,0.00013737,2]
[333831052,1722537052388,-155.0,0.00013789,2]
[333831053,1722537052398,-504.66114571,0.00013799,2]
[333831054,1722537052407,-300.0,0.00013799,2]
[333831055,1722537052417,-300.0,0.00013799,2]
[333831056,1722537052426,-300.0,0.00013799,2]
[333831057,1722537052435,-300.0,0.00013799,2]
[333831058,1722537052444,-300.0,0.00013799,2]
[333831059,1722537052455,-1233.20516886,0.00013799,2]
[333831060,1722537052466,-1296.95622263,0.00013799,2]
[333831061,1722537052478,-165.299186,0.000138,2]
[333831062,1722537052488,-151.0,0.000138,2]
[333831063,1722537052499,-151.0,0.000138,2]
[333831064,1722537052509,-151.0,0.000138,2]
[333831065,1722537052519,-181.564108,0.000138,2]
[333831066,1722537052529,-151.0,0.000138,2]
[333831067,1722537052540,-153.45663,0.000138,2]
[333831068,1722537052551,-153.45663,0.000138,2]
[333831069,1722537052561,-151.0,0.000138,2]
[333831070,1722537052571,-151.0,0.000138,2]
[333831071,1722537052581,-151.0,0.000138,2]
[333831072,1722537052591,-151.0,0.000138,2]
[333831073,1722537052600,-151.0,0.000138,2]
[333831074,1722537052610,-600.0,0.000138,2]
[333831075,1722537052620,-600.0,0.000138,2]
[333831076,1722537052629,-151.0,0.000138,2]
[333831077,1722537052639,-151.0,0.000138,2]
[333831078,1722537052648,-151.0,0.000138,2]
[333831079,1722537052658,-151.0,0.000138,2]
[333831080,1722537052667,-278.959402,0.000138,2]
[333831081,1722537052677,-151.0,0.000138,2]
[333831082,1722537052687,-172.248,0.000138,2]
[333831083,1722537052696,-172.248,0.000138,2]
[333831084,1722537052705,-151.0,0.000138,2]
[333831085,1722537052715,-151.0,0.000138,2]
[333831086,1722537052724,-151.0,0.000138,2]
[333831087,1722537052733,-151.0,0.000138,2]
[333831088,1722537052743,-151.0,0.000138,2]
[333831089,1722537052753,-151.0,0.000138,2]
[333831090,1722537052763,-253.284576,0.000138,2]
[333831091,1722537052773,-280.030852,0.000138,2]
[333831092,1722537052782,-280.030852,0.000138,2]
[333831093,1722537052793,-151.0,0.000138,2]
[333831094,1722537052803,-151.0,0.000138,2]
[333831095,1722537052813,-151.0,0.000138,2]
[333831096,1722537052823,-151.0,0.000138,2]
[333831097,1722537052832,-1242.473188,0.000138,2]
[333831098,1722537052842,-151.0,0.000138,2]
[333831099,1722537052852,-1242.473188,0.000138,2]
[333831100,1722537052862,-602174.335474,0.000138,3]
[333831101,1722537052875,-151.0,0.000138,2]
[333831102,1722537052886,-159.398392,0.000138,2]
[333831103,1722537052895,-159.398392,0.000138,2]
[333831104,1722537052904,-233.551866,0.000138,2]
[333831105,1722537052915,-233.551866,0.000138,2]
[333831106,1722537052924,-150.0,0.00013808,2]
[333831107,1722537052934,-1000.0,0.00013841,2]
[333831108,1722537052945,-300.0,0.00013858,2]
[333831109,1722537052955,-686.31468402,0.00013859,2]
[333831110,1722537052965,-650.97560109,0.00013859,2]
[333831111,1722537052974,-298.34472477,0.00013859,2]
[333831112,1722537052983,-2143.78276528,0.00013859,2]
[333831113,1722537052993,-300.0,0.00013878,2]
[333831114,1722537053002,-300.0,0.00013878,2]
[333831115,1722537053012,-300.0,0.00013878,2]
[333831116,1722537053022,-1049.57124552,0.00013879,2]
[333831117,1722537053031,-168.55,0.00013881,2]
[333831118,1722537053041,-300.0,0.00013888,2]
[333831119,1722537053050,-300.0,0.00013888,2]
[333831120,1722537053060,-300.0,0.00013888,2]
[333831121,1722537053069,-600.14164396,0.00013889,2]
[333831122,1722537053080,-216.98844573,0.00013889,2]
[333831123,1722537053090,-600.14164396,0.00013889,2]
[333831124,1722537053100,-150.0,0.0001389,3]
[333831125,1722537053114,-629.42116315,0.00013896,2]
[333831126,1722537053125,-184.62206832,0.00013896,2]
[333831127,1722537053137,-300.0,0.00013899,2]
[333831128,1722537053147,-300.0,0.00013899,2]
[333831129,1722537053156,-300.0,0.00013899,2]
[333831130,1722537053166,-300.0,0.00013899,2]
[333831131,1722537053175,-300.0,0.00013899,2]
[333831132,1722537053185,-300.0,0.00013899,2]
[333831133,1722537053196,-281.26723092,0.00013899,2]
[333831134,1722537053205,-357.09487431,0.00013899,2]
[333831135,1722537053215,-628.0054999,0.00013899,2]
[333831136,1722537053224,-155.0,0.00013899,2]
[333831137,1722537053237,-722.68329662,0.00013899,2]
[333831138,1722537053248,-151.0,0.000139,2]
[333831139,1722537053257,-151.0,0.000139,2]
[333831140,1722537053267,-153.45663,0.000139,2]
[333831141,1722537053276,-153.45663,0.000139,2]
[333831142,1722537053286,-151.0,0.000139,2]
[333831143,1722537053296,-151.0,0.000139,2]
[333831144,1722537053306,-151.0,0.000139,2]
[333831145,1722537053316,-151.0,0.000139,2]
[333831146,1722537053326,-151.0,0.000139,2]
[333831147,1722537053336,-151.0,0.000139,2]
[333831148,1722537053345,-600.0,0.000139,2]
[333831149,1722537053355,-600.0,0.000139,2]
[333831150,1722537053365,-151.0,0.000139,2]
[333831151,1722537053374,-151.0,0.000139,2]
[333831152,1722537053383,-151.0,0.000139,2]
[333831153,1722537053395,-151.0,0.000139,2]
[333831154,1722537053404,-172.248,0.000139,2]
[333831155,1722537053414,-172.248,0.000139,2]
[333831156,1722537053424,-224.347627,0.000139,2]
[333831157,1722537053433,-151.0,0.000139,2]
[333831158,1722537053443,-151.0,0.000139,2]
[333831159,1722537053453,-151.0,0.000139,2]
[333831160,1722537053463,-280.030852,0.000139,2]
[333831161,1722537053473,-280.030852,0.000139,2]
[333831162,1722537053484,-151.0,0.000139,2]
[333831163,1722537053494,-151.0,0.000139,2]
[333831164,1722537053503,-1242.473188,0.000139,2]
[333831165,1722537053512,-151.0,0.000139,2]
[333831166,1722537053522,-1242.473188,0.000139,2]
[333831167,1722537053531,-600971.354078,0.000139,3]
[333831168,1722537053540,-245.0,0.000139,2]
[333831169,1722537053551,-159.398392,0.000139,2]
[333831170,1722537053560,-159.398392,0.000139,2]
[333831171,1722537053569,-233.551866,0.000139,2]
[333831172,1722537053578,-233.551866,0.000139,2]
[333831173,1722537053587,-798.15,0.00013973,2]
[333831174,1722537053596,-1000.0,0.00013973,2]
[333831175,1722537053605,-188.60979296,0.00013979,2]
[333831176,1722537053614,-359.03203292,0.00013979,2]
[333831177,1722537053624,-555.0,0.00013979,2]
[333831178,1722537053632,-347.32373286,0.00013979,2]
[333831179,1722537053643,-363.80421493,0.00013979,2]
[333831180,1722537053652,-210.80539627,0.00013979,2]
[333831181,1722537053661,-264.03894304,0.00013979,2]
[333831182,1722537053671,-528.40182091,0.00013986,2]
[333831183,1722537053681,-365.36537875,0.00013986,2]
[333831184,1722537053690,-236.10516886,0.00013986,2]
[333831185,1722537053703,-236.10516886,0.00013989,2]
[333831186,1722537053713,-281.48530578,0.00013989,2]
[333831187,1722537053722,-349.35447946,0.00013989,2]
[333831188,1722537053731,-281.48530578,0.00013989,2]
[333831189,1722537053740,-210.84776497,0.00013996,2]
[333831190,1722537053750,-155.0,0.00013996,2]
[333831191,1722537053759,-300.0,0.00013999,2]
[333831192,1722537053768,-300.0,0.00013999,2]
[333831193,1722537053778,-300.0,0.00013999,2]
[333831194,1722537053787,-300.0,0.00013999,2]
[333831195,1722537053796,-300.0,0.00013999,2]
[333831196,1722537053805,-300.0,0.00013999,2]
[333831197,1722537053814,-454.12693481,0.00013999,2]
[333831198,1722537053823,-15000.0,0.00014,2]
[333831199,1722537053834,-1000.0,0.00014,2]
[333831200,1722537053845,-1000.0,0.00014,2]
[333831201,1722537053855,-536.95660692,0.00014,2]
[333831202,1722537053864,-436108.12901538,0.00014,4]
[333831203,1722537053877,-2000.0,0.00014,2]
[333831204,1722537053887,-600.0,0.00014,2]
[333831205,1722537053896,-153.45663,0.00014,2]
[333831206,1722537053906,-153.45663,0.00014,2]
[333831207,1722537053915,-151.0,0.00014,2]
[333831208,1722537053925,-151.0,0.00014,2]
[333831209,1722537053933,-172.831936,0.00014,2]
[333831210,1722537053943,-151.0,0.00014,2]
[333831211,1722537053954,-151.0,0.00014,2]
[333831212,1722537053964,-151.0,0.00014,2]
[333831213,1722537053973,-600.0,0.00014,2]
[333831214,1722537053982,-600.0,0.00014,2]
[333831215,1722537053991,-151.0,0.00014,2]
[333831216,1722537054001,-151.0,0.00014,2]
[333831217,1722537054010,-151.0,0.00014,2]
[333831218,1722537054019,-151.0,0.00014,2]
[333831219,1722537054030,-151.0,0.00014,2]
[333831220,1722537054039,-335.16,0.00014019,2]
[333831221,1722537054049,-3000.0,0.0001402,2]
[333831222,1722537054058,-1242.473188,0.0001402,2]
[333831223,1722537054068,-151.0,0.0001402,2]
[333831224,1722537054077,-1242.473188,0.0001402,2]
[333831225,1722537054087,-2692.24190968,0.00014068,2]
[333831226,1722537054097,-269.214476,0.00014068,2]
[333831227,1722537054106,-172.248,0.00014068,2]
[333831228,1722537054115,-172.248,0.00014068,2]
[333831229,1722537054125,-151.0,0.00014068,2]
[333831230,1722537054134,-151.0,0.00014068,2]
[333831231,1722537054144,-159.398392,0.00014068,2]
[333831232,1722537054154,-159.398392,0.00014068,2]
[333831233,1722537054163,-233.551866,0.00014068,2]
[333831234,1722537054172,-233.551866,0.00014068,2]
[333831235,1722537054181,-151.0,0.00014086,2]
[333831236,1722537054190,-280.030852,0.00014086,2]
[333831237,1722537054200,-280.030852,0.00014086,2]
[333831238,1722537054209,-160.34435655,0.00014088,2]
[333831239,1722537054219,-158.28505853,0.00014088,2]
[333831240,1722537054229,-163.80987483,0.00014088,2]
[333831241,1722537054238,-200.0,0.00014088,2]
[333831242,1722537054248,-160.29151662,0.00014088,2]
[333831243,1722537054257,-600.0,0.0001412,2]
[333831244,1722537054267,-600.0,0.0001412,2]
[333831245,1722537054276,-199.87295642,0.00014157,2]
[333831246,1722537054285,-3030.733546,0.00014247,2]
[333831247,1722537054294,-2692.24190968,0.00014257,2]
[333831248,1722537054304,-151.0,0.00014261,2]
[333831249,1722537054313,-151.0,0.00014261,2]
[333831250,1722537054322,-308.34,0.0001427,2]
[333831251,1722537054331,-400.0,0.00014342,2]
[333831252,1722537054340,-5007.11335262,0.00014444,2]
[333831253,1722537054349,-300.03919008,0.00014574,2]
[333831254,1722537054359,-1152.0,0.00014584,2]
[333831255,1722537054368,-3000.0,0.0001465,2]
[333831256,1722537054377,-500.58181761,0.0001467,2]
[333831257,1722537054390,-150.0,0.00014702,2]
[333831258,1722537054399,-400.0,0.00014703,2]
[333831259,1722537054410,-300.0,0.00014723,2]
[333831260,1722537054419,-150.0,0.00014756,2]
[333831261,1722537054429,-170.81662989,0.00014775,2]
[333831262,1722537054439,-300.0,0.00014859,2]
[333831263,1722537054449,-400.0,0.00014895,2]
[333831264,1722537054458,-211.2519665,0.000149,2]
[333831265,1722537054467,-211.25196649,0.000149,2]
[333831266,1722537054477,-211.25196649,0.000149,2]
[333831267,1722537054486,-749.15,0.00014919,2]
[333831268,1722537054496,-150.0,0.0001492,4]
[333831269,1722537054505,-258.64040871,0.00014925,2]
[333831270,1722537054515,-150.0,0.00014941,2]
[333831271,1722537054525,-400.0,0.0001497,2]
[333831272,1722537054534,-700.0,0.0001497,2]
[333831273,1722537054544,-1200.0,0.0001497,2]
[333831274,1722537054553,-400.0,0.0001497,2]
[333831275,1722537054562,-200.0,0.00014973,2]
[333831276,1722537054571,-300.0,0.00014999,2]
[333831277,1722537054581,-300.0,0.00014999,2]
[333831278,1722537054590,-22076.50303985,0.00015,2]
[333831279,1722537054599,-306.16829385,0.00015,2]
[333831280,1722537054609,-1928.4210256,0.00015,2]
[333831281,1722537054618,-222585.59217684,0.00015,2]
[333831282,1722537054627,-11376.42322508,0.00015,2]
[333831283,1722537054638,-150.05673372,0.00015,2]
[333831284,1722537054648,-1362.0,0.00015,2]
[333831285,1722537054657,-256.22132396,0.00015,2]
[333831286,1722537054666,-751.39113517,0.00015,2]
[333831287,1722537054676,-12000.0,0.00015,2]
[333831288,1722537054686,-252.19462798,0.00015,2]
[333831289,1722537054695,-500.0,0.00015,2]
[333831290,1722537054705,-76406.21495748,0.00015,3]
[333831291,1722537054716,-494.0,0.00015,2]
[333831292,1722537054727,-522.38338941,0.00015,2]
[333831293,1722537054738,-260.0,0.00015,2]
[333831294,1722537054749,-2000.0,0.00015,2]
[333831295,1722537054759,-500.0,0.00015,2]
[333831296,1722537054769,-3471.41301966,0.00015,2]
[333831297,1722537054778,-20021.96435556,0.00015,7]
[333831298,1722537054788,-1854.0,0.00015,2]
[333831299,1722537054797,-200.0,0.00015,2]
[333831300,1722537054806,-8912.0,0.00015,2]
[333831301,1722537054816,-151.0,0.00015,2]
[333831302,1722537054825,-151.0,0.00015,2]
[333831303,1722537054834,-153.45663,0.00015,2]
[333831304,1722537054843,-153.45663,0.00015,2]
[333831305,1722537054852,-2000.0,0.00015,2]
[333831306,1722537054862,-185.14686749,0.00015,2]
[333831307,1722537054872,-1003.94,0.00015,2]
[333831308,1722537054883,-308.34,0.00015,2]
[333831309,1722537054894,-200.0,0.00015,2]
[333831310,1722537054903,-800.0,0.00015014,2]
[333831311,1722537054914,-800.0,0.00015014,2]
[333831312,1722537054923,-800.0,0.00015014,2]
[333831313,1722537054933,-1003.94,0.00015015,2]
[333831314,1722537054942,-2692.24190968,0.00015046,2]
[333831315,1722537054952,-240.90826,0.00015058,2]
[333831316,1722537054962,-151.0,0.00015068,2]
[333831317,1722537054971,-151.0,0.00015068,2]
[333831318,1722537054981,-151.0,0.00015068,2]
[333831319,1722537054990,-151.0,0.00015068,2]
[333831320,1722537055000,-151.0,0.00015068,2]
[333831321,1722537055010,-151.0,0.00015068,2]
[333831322,1722537055020,-151.0,0.00015068,2]
[333831323,1722537055029,-151.0,0.00015068,2]
[333831324,1722537055039,-151.0,0.00015068,2]
[333831325,1722537055049,-300.0,0.00015068,2]
[333831326,1722537055058,-3030.733546,0.00015068,2]
[333831327,1722537055067,-500.0,0.000151,2]
[333831328,1722537055077,-150.0,0.0001511,2]
[333831329,1722537055087,-231.45,0.00015111,2]
[333831330,1722537055098,-168.55,0.00015143,2]
[333831331,1722537055109,-200.0,0.0001515,2]
[333831332,1722537055119,-226.0,0.000152,2]
[333831333,1722537055129,-253.5,0.000152,2]
[333831334,1722537055140,-775.0,0.000152,2]
[333831335,1722537055151,-360.0,0.000152,2]
[333831336,1722537055161,-1000.0,0.000152,2]
[333831337,1722537055170,-1000.0,0.00015225,2]
[333831338,1722537055181,-308.34,0.0001524,2]
[333831339,1722537055194,-3000.0,0.0001527,2]
[333831340,1722537055204,-200.0,0.00015301,2]
[333831341,1722537055214,-151.0,0.00015342,2]
[333831342,1722537055224,-600.0,0.00015342,2]
[333831343,1722537055234,-600.0,0.00015342,2]
[333831344,1722537055245,-150.0,0.00015388,2]
[333831345,1722537055256,-150.0,0.00015388,2]
[333831346,1722537055266,-15736.24107301,0.000154,2]
[333831347,1722537055277,-172.248,0.000154,2]
[333831348,1722537055287,-172.248,0.000154,2]
[333831349,1722537055297,-151.0,0.000154,2]
[333831350,1722537055307,-280.030852,0.000154,2]
[333831351,1722537055317,-280.030852,0.000154,2]
[333831352,1722537055327,-400.0,0.00015457,2]
[333831353,1722537055337,-150.0,0.00015588,2]
[333831354,1722537055347,-2692.24190968,0.00015664,2]
[333831355,1722537055357,-246.32894452,0.00015757,2]
[333831356,1722537055369,-400.0,0.0001577,2]
[333831357,1722537055380,-700.0,0.0001577,2]
[333831358,1722537055393,-600.0,0.000158,2]
[333831359,1722537055403,-167.0,0.00015831,2]
[333831360,1722537055413,-2154.85432807,0.0001587,2]
[333831361,1722537055423,-3000.0,0.0001589,2]
[333831362,1722537055435,-3030.733546,0.0001589,2]
[333831363,1722537055448,-3000.0,0.000159,2]
[333831364,1722537055459,-150.0,0.0001594,4]
[333831365,1722537055469,-308.34,0.0001597,2]
[333831366,1722537055480,-2000.0,0.00016,2]
[333831367,1722537055491,-650.0,0.00016,2]
[333831368,1722537055502,-2000.0,0.00016,2]
[333831369,1722537055512,-1242.473188,0.00016,2]
[333831370,1722537055522,-232.853084,0.00016,2]
[333831371,1722537055532,-1242.473188,0.00016,2]
[333831372,1722537055542,-2000.0,0.0001601,2]
[333831373,1722537055552,-151.0,0.0001601,2]
[333831374,1722537055563,-151.0,0.0001601,2]
[333831375,1722537055574,-2000.0,0.0001602,2]
[333831376,1722537055584,-3424.983186,0.0001603,2]
[333831377,1722537055593,-159.398392,0.0001603,2]
[333831378,1722537055604,-159.398392,0.0001603,2]
[333831379,1722537055614,-233.551866,0.0001603,2]
[333831380,1722537055624,-233.551866,0.0001603,2]
[333831381,1722537055635,-155.0,0.00016033,2]
[333831382,1722537055647,-1613.0,0.00016043,2]
[333831383,1722537055657,-840.48858729,0.00016092,2]
[333831384,1722537055668,-800.0,0.00016092,2]
[333831385,1722537055678,-9999.99,0.00016116,2]
[333831386,1722537055689,-600.0,0.0001612,2]